fUSD/lending_fUSD_20260314
["ID","MTS","AMOUNT","RATE_DAILY","PERIOD"]
[408338720,1773450634033,-3102.672497,0.00019949,2]
[408338721,1773450634043,-3102.672497,0.00019949,2]
[408338722,1773450634053,-3102.672497,0.00019949,2]
[408338723,1773450634063,-151.0,0.00019949,2]
[408338724,1773450634072,-175.023449,0.00019949,2]
[408338725,1773450634085,-175.023449,0.00019949,2]
[408338726,1773450634095,-175.023449,0.00019949,2]
[408338727,1773450634105,-175.023458,0.00019949,2]
[408338728,1773450634115,-34405.46632287,0.0001995,15]
[408338729,1773450634128,-15801.12343205,0.0001995,15]
[408338730,1773450634225,-1150.44686921,0.0001995,15]
[408338734,1773450637787,-151.0,0.00017973,2]
[408338735,1773450637798,-151.0,0.00018493,2]
[408338736,1773450637808,-57.4103643,0.00018521,2]
[408338769,1773450640004,-151.0,0.00018493,2]
[408338770,1773450640014,-151.0,0.00018493,2]
[408338771,1773450640023,-93.5896357,0.00018521,2]
[408338772,1773450640033,-78.34372263,0.00018521,2]
[408338773,1773450640044,-72.65627737,0.00018521,2]
[408338774,1773450640053,-151.0,0.00018521,2]
[408338775,1773450640063,-151.0,0.00018521,2]
[408338776,1773450640072,-151.0,0.000189,2]
[408338777,1773450640081,-151.0,0.000189,2]
[408338778,1773450640100,-151.0,0.000189,2]
[408338779,1773450640110,-151.0,0.000189,2]
[408338780,1773450640119,-151.0,0.00019178,2]
[408338781,1773450640129,-151.0,0.00019178,2]
[408338782,1773450640139,-151.0,0.00019178,2]
[408338783,1773450640148,-151.0,0.00019178,2]
[408338784,1773450640157,-151.0,0.00019949,2]
[408338785,1773450640167,-275.453441,0.00019949,2]
[408338786,1773450640176,-151.0,0.00019949,2]
[408338787,1773450640185,-151.0,0.00019949,2]
[408338788,1773450640194,-2415.26982833,0.0001995,15]
[408338789,1773450640206,-1924.23565072,0.0001995,15]
[408338800,1773450642893,-151.0,0.00017973,2]
[408338801,1773450642903,-151.0,0.00017973,2]
[408338802,1773450642912,-151.0,0.00018521,2]
[408338803,1773450642922,-151.0,0.000189,2]
[408338804,1773450642932,-151.0,0.00019178,2]
[408338805,1773450642942,-151.0,0.00019178,2]
[408338806,1773450642952,-176.08232065,0.000199,2]
[408338807,1773450642964,-478.51655685,0.000199,2]
[408338808,1773450643145,-29.54747751,0.000199,2]
[408338810,1773450643168,-991.76757912,0.000199,2]
[408338811,1773450643178,-168.55772072,0.00019949,2]
[408338812,1773450643190,-82.40298328,0.00019949,2]
[408338813,1773450643199,-151.0,0.00019949,2]
[408338814,1773450643208,-18048.87636437,0.0001995,15]
[408338815,1773450643219,-24889.77826162,0.0001995,15]
[408338819,1773450645866,-151.0,0.00018521,2]
[408338820,1773450645876,-151.0,0.000189,2]
[408338821,1773450645887,-151.0,0.00019178,2]
[408338822,1773450645896,-250.3303338,0.000199,2]
[408338823,1773450645906,-5701.18469638,0.0001995,15]
[408338824,1773450646080,-78762.95632507,0.0001995,15]
[408338825,1773450646089,-151.0,0.0001995,2]
[408338826,1773450646099,-151.0,0.0001995,2]
[408338827,1773450646109,-299.069507,0.0001995,2]
[408338828,1773450646119,-151.0,0.0001995,2]
[408338829,1773450646129,-151.0,0.0001995,2]
[408338831,1773450646138,-1449.391515,0.0001995,2]
[408338832,1773450646147,-1449.391515,0.0001995,2]
[408338835,1773450646156,-1449.391515,0.0001995,2]
[408338837,1773450646166,-1437.47885676,0.0001995,2]
[408338856,1773450685075,1538.71068769,0.0003287,120]
[408338857,1773450786582,1388.0,0.00032877,120]
[408338860,1773451287140,445.67,0.00025608,120]
[408338861,1773451287371,445.67,0.00027935,120]
[408338863,1773451321862,238.30908066,0.00015,2]
[408338864,1773451321884,11.69091934,0.00015,2]
[408338868,1773451406977,159.85,9.327e-05,2]
[408338869,1773451407176,159.85,0.00010364,2]
[408338870,1773451407395,138.49544088,0.000114,2]
[408338871,1773451407417,21.35455912,0.000114,2]
[408338872,1773451407628,159.85,0.00012437,2]
[408338873,1773451407841,159.85,0.00013473,2]
[408338874,1773451408045,128.8318011,0.00014509,2]
[408338875,1773451408068,31.0181989,0.00014509,2]
[408338878,1773451651078,-159.85,0.00015546,2]
[408338879,1773451651098,-421.28876842,0.00015715,2]
[408338880,1773451761098,-178.71123158,0.00015715,2]
[408338881,1773451761118,-2289.89943787,0.00015884,2]
[408338883,1773451831814,-91.62056213,0.00015884,2]
[408338884,1773451831823,-159.85,0.00016582,2]
[408338885,1773451831833,-300.0,0.00017099,2]
[408338886,1773451831842,-784.2399638,0.00017099,2]
[408338887,1773451831854,-415.7600362,0.00017099,2]
[408338888,1773451831864,-300.0,0.00017099,2]
[408338889,1773451831873,-68.78450942,0.00017099,2]
[408338890,1773451831885,-481.21549058,0.00017099,2]
[408338891,1773451831895,-214.28749527,0.00017286,2]
[408338892,1773451831905,-159.85,0.00017619,2]
[408338893,1773451831915,-166.66,0.00018006,2]
[408338894,1773451831925,-935.0,0.00018211,2]
[408338895,1773451831935,-150.0,0.00018375,2]
[408338896,1773451831945,-166.66,0.00018385,2]
[408338897,1773451831955,-200.0,0.00018601,2]
[408338898,1773451831965,-445.67,0.00018624,2]
[408338899,1773451831974,-159.85,0.00018655,2]
[408338900,1773451831984,-420.0,0.00018674,2]
[408338901,1773451831994,-325.0,0.00018674,2]
[408338902,1773451832003,-500.0,0.00018685,2]
[408338903,1773451832013,-166.66,0.00018764,2]
[408338904,1773451832022,-1680.0,0.00018767,2]
[408338905,1773451832032,-700.62114221,0.00018772,2]
[408338906,1773451832043,-502.48786936,0.00018773,2]
[408338907,1773451832053,-500.0,0.00018773,2]
[408338908,1773451832063,-500.0,0.00018773,2]
[408338909,1773451832082,-500.0,0.00018773,2]
[408338910,1773451832092,-500.0,0.00018773,2]
[408338911,1773451832102,-500.68822553,0.00018773,2]
[408338912,1773451832112,-1187.53378285,0.00018782,2]
[408338913,1773451832125,-500.0,0.00018782,2]
[408338914,1773451832136,-661.27450817,0.00018782,2]
[408338918,1773451832202,-7533.78824097,0.00018782,2]
[408338919,1773451832212,-1157.65074635,0.00018782,2]
[408338920,1773451832224,-43424.56272166,0.00018782,2]
[408338921,1773451832234,-2402.07,0.00018884,2]
[408338922,1773451832243,-5060.81967597,0.00018952,2]
[408338923,1773451832253,-500.0,0.00019014,2]
[408338924,1773451832263,-166.66,0.00019143,2]
[408338925,1773451832272,-150.0,0.00019206,2]
[408338926,1773451832281,-150.0,0.00019206,2]
[408338927,1773451832291,-150.0,0.00019206,2]
[408338928,1773451832300,-500.0,0.00019206,2]
[408338929,1773451832310,-150.0,0.00019206,2]
[408338930,1773451832319,-167.5639393,0.00019206,2]
[408338931,1773451832329,-150.0,0.00019206,2]
[408338932,1773451832542,-280.13396594,0.00019206,2]
[408338933,1773451832553,-150.0,0.00019206,2]
[408338934,1773451832563,-150.0,0.00019206,2]
[408338935,1773451832576,-500.0,0.00019206,2]
[408338936,1773451832586,-150.0,0.00019206,2]
[408338937,1773451832595,-150.0,0.00019252,2]
[408338938,1773451832605,-150.0,0.00019261,2]
[408338939,1773451832615,-150.0,0.00019261,2]
[408338940,1773451832625,-607.72101256,0.00019261,2]
[408338941,1773451832635,-150.0,0.00019261,2]
[408338942,1773451832645,-165.4706198,0.00019261,2]
[408338943,1773451832658,-150.0,0.00019261,2]
[408338944,1773451832668,-500.0,0.00019261,2]
[408338945,1773451832678,-150.0,0.00019261,2]
[408338946,1773451832688,-180.0,0.00019316,2]
[408338947,1773451832700,-259.35353956,0.00019316,2]
[408338948,1773451832710,-150.0,0.00019316,2]
[408338949,1773451832719,-150.0,0.00019316,2]
[408338950,1773451832729,-500.0,0.00019316,2]
[408338951,1773451832739,-150.0,0.00019316,2]
[408338952,1773451832749,-715.19575134,0.00019321,2]
[408338953,1773451832758,-2402.07,0.00019356,2]
[408338954,1773451832768,-150.0,0.0001937,2]
[408338955,1773451832777,-238.85763274,0.0001937,2]
[408338956,1773451832787,-500.0,0.0001937,2]
[408338957,1773451832796,-150.0,0.0001937,2]
[408338958,1773451832806,-4651.35,0.0001942,2]
[408338959,1773451832815,-500.0,0.00019425,2]
[408338960,1773451832825,-500.0,0.00019425,2]
[408338961,1773451832834,-150.0,0.00019425,2]
[408338962,1773451832844,-500.0,0.00019425,2]
[408338963,1773451832853,-150.0,0.00019425,2]
[408338964,1773451832863,-500.0,0.00019425,2]
[408338965,1773451832872,-500.0,0.00019425,2]
[408338966,1773451832881,-200.54971952,0.00019425,2]
[408338967,1773451832891,-500.0,0.00019425,2]
[408338968,1773451832900,-281.72961941,0.00019425,2]
[408338969,1773451832909,-500.0,0.00019425,2]
[408338970,1773451832919,-500.0,0.00019425,2]
[408338971,1773451832929,-150.0,0.00019425,2]
[408338972,1773451832938,-500.0,0.00019425,2]
[408338973,1773451832949,-150.0,0.00019425,2]
[408338974,1773451832958,-500.0,0.0001948,2]
[408338975,1773451832970,-500.0,0.0001948,2]
[408338976,1773451832980,-150.0,0.0001948,2]
[408338977,1773451832990,-500.0,0.0001948,2]
[408338978,1773451832999,-150.0,0.0001948,2]
[408338979,1773451833009,-500.0,0.0001948,2]
[408338980,1773451833018,-500.0,0.0001948,2]
[408338981,1773451833028,-500.0,0.0001948,2]
[408338982,1773451833038,-500.0,0.0001948,2]
[408338983,1773451833047,-500.0,0.0001948,2]
[408338984,1773451833056,-250.0,0.0001948,2]
[408338985,1773451833065,-444.0,0.0001948,2]
[408338986,1773451833075,-1327.8,0.0001949,2]
[408338987,1773451833084,-166.66,0.00019522,2]
[408338988,1773451833093,-333.57993329,0.00019535,2]
[408338989,1773451833102,-150.0,0.00019535,2]
[408338990,1773451833112,-260.77564098,0.00019535,2]
[408338991,1773451833121,-150.0,0.00019535,2]
[408338992,1773451833130,-500.0,0.00019535,2]
[408338993,1773451833139,-500.0,0.00019535,2]
[408338994,1773451833149,-496.0,0.00019535,2]
[408338995,1773451833158,-500.0,0.00019535,2]
[408338996,1773451833167,-550.0,0.00019535,2]
[408338997,1773451833176,-500.0,0.00019535,2]
[408338998,1773451833185,-150.0,0.00019589,2]
[408338999,1773451833194,-150.0,0.00019589,2]
[408339000,1773451833205,-550.0,0.00019589,2]
[408339001,1773451833216,-500.0,0.00019589,2]
[408339002,1773451833226,-500.0,0.00019589,2]
[408339003,1773451833235,-500.0,0.00019589,2]
[408339004,1773451833245,-150.0,0.00019644,2]
[408339005,1773451833255,-150.0,0.00019644,2]
[408339006,1773451833264,-500.0,0.00019644,2]
[408339007,1773451833274,-426.62449707,0.00019644,2]
[408339008,1773451833283,-296.22060755,0.00019644,2]
[408339009,1773451833293,-250.0,0.00019699,2]
[408339010,1773451833303,-500.0,0.00019699,2]
[408339011,1773451833312,-435.12931061,0.00019754,2]
[408339012,1773451833321,-2402.07,0.00019829,2]
[408339013,1773451833330,-1547.14330214,0.00019849,2]
[408339014,1773451833340,-495.1204937,0.000199,2]
[408339015,1773451833352,-3523.27436671,0.000199,2]
[408339016,1773451833362,-810.72044631,0.000199,2]
[408339017,1773451833371,-208.6086115,0.000199,2]
[408339018,1773451833381,-166.66,0.00019901,2]
[408339019,1773451833390,-281.2075308,0.00019923,2]
[408339020,1773451833400,-20296.9816948,0.00019923,2]
[408339021,1773451833410,-17285.9882147,0.00019923,2]
[408339022,1773451833419,-500.0,0.00019945,2]
[408339023,1773451833429,-164.51508203,0.00019949,2]
[408339024,1773451833438,-500.0,0.00019973,2]
[408339025,1773451833449,-196.25165977,0.00019973,2]
[408339026,1773451833459,-401.4231596,0.00019973,2]
[408339027,1773451833468,-500.0,0.00019973,2]
[408339028,1773451833478,-500.0,0.00019973,2]
[408339029,1773451833488,-500.0,0.00019973,2]
[408339030,1773451833497,-500.0,0.00019973,2]
[408339031,1773451833507,-500.0,0.00019973,2]
[408339032,1773451833517,-500.0,0.00019973,2]
[408339033,1773451833526,-500.33096278,0.00019973,2]
[408339034,1773451833536,-167.62,0.0001999,2]
[408339035,1773451833546,-199.7164195,0.0001999,2]
[408339036,1773451833556,-151.0,0.00019997,2]
[408339037,1773451833566,-500.0,0.00019999,2]
[408339038,1773451833576,-500.0,0.00019999,2]
[408339039,1773451833585,-500.0,0.00019999,2]
[408339040,1773451833595,-150.0,0.00019999,2]
[408339041,1773451833605,-201.54785142,0.00019999,2]
[408339042,1773451833615,-513.24529191,0.00019999,2]
[408339043,1773451833624,-500.0,0.00019999,2]
[408339044,1773451833633,-500.0,0.00019999,2]
[408339045,1773451833642,-500.0,0.00019999,2]
[408339046,1773451833653,-500.0,0.00019999,2]
[408339047,1773451833663,-500.0,0.00019999,2]
[408339048,1773451833672,-500.0,0.00019999,2]
[408339049,1773451833683,-500.0,0.00019999,2]
[408339050,1773451833693,-500.0,0.00019999,2]
[408339051,1773451833703,-500.0,0.00019999,2]
[408339052,1773451833712,-500.0,0.00019999,2]
[408339053,1773451833722,-270.42651388,0.00019999,2]
[408339054,1773451833731,-500.0,0.00019999,2]
[408339055,1773451833745,-500.0,0.00019999,2]
[408339056,1773451833755,-170.62194809,0.00019999,2]
[408339057,1773451833764,-149448.58021528,0.0002,2]
[408339058,1773451833804,-19457.89487247,0.0002,2]
[408339059,1773451833815,-5362.41023912,0.0002,2]
[408339060,1773451833826,-28390.69551493,0.0002,2]
[408339061,1773451833838,-287.06431718,0.0002,2]
[408339062,1773451833849,-1376.90022265,0.0002,2]
[408339063,1773451833861,-1766.92081842,0.0002,2]
[408339064,1773451833897,184.81,0.00016438,7]
[408339065,1773451833924,245.42,0.00016438,7]
[408339068,1773451838093,-3443.28231244,0.0002,2]
[408339069,1773451838127,-3115.8546988,0.0002,2]
[408339109,1773451840152,-1025.7007882,0.0002,2]
[408339111,1773451840164,-511.0,0.0002,2]
[408339114,1773451840244,-64.57097445,0.0002,2]
[408339139,1773451845895,-7350.80782977,0.0002,2]
[408339140,1773451845907,-262.6,0.0002,2]
[408339141,1773451846127,-10485.50308336,0.0002,2]
[408339142,1773451846169,-11969.35051898,0.0002,2]
[408339149,1773452244082,214.2152799,0.00032876,120]
[408339151,1773452351406,151.0,0.00014634,2]
[408339152,1773452355664,151.0,0.00014634,2]
[408339153,1773452372361,136.86816132,0.00014634,2]
[408339154,1773452372385,14.13183868,0.00014634,2]
[408339158,1773452485168,500.0,0.0003287,120]
[408339159,1773452589621,200.0,0.00032,120]
[408339160,1773452710172,329.44,0.00032877,120]
[408339161,1773452827126,-204.44081728,0.000192,2]
[408339162,1773452901474,3000.0,0.00032877,120]
[408339165,1773453032246,-350.435836,0.00018974,7]
[408339166,1773453032256,-1795.55918272,0.000192,2]
[408339167,1773453032266,-452.79399353,0.00019275,2]
[408339168,1773453032275,-2500.0,0.0001935,2]
[408339169,1773453032284,-195.0,0.0001935,2]
[408339170,1773453032294,-500.0,0.000195,2]
[408339172,1773453032303,-300.0,0.00019519,2]
[408339174,1773453032313,-2500.0,0.0001952,2]
[408339176,1773453032323,-1488.77397183,0.0001952,2]
[408339178,1773453032333,-203.81518722,0.0001952,2]
[408339179,1773453032342,-1500.0,0.00019582,2]
[408339181,1773453032352,-962.328,0.000196,2]
[408339182,1773453032362,-2000.0,0.00019716,2]
[408339183,1773453032372,-228.59,0.0001988,2]
[408339184,1773453032381,-500.0,0.0001989,2]
[408339185,1773453032391,-1683.45344414,0.000199,2]
[408339186,1773453032401,-758.5004232,0.000199,2]
[408339188,1773453032410,-426.57038091,0.000199,2]
[408339190,1773453032420,-795.9470897,0.000199,2]
[408339192,1773453032430,-502.27112461,0.00019973,2]
[408339194,1773453032439,-503.03404579,0.00019973,2]
[408339196,1773453032449,-506.20767986,0.00019973,2]
[408339198,1773453032459,-502.90213275,0.00019973,2]
[408339200,1773453032468,-500.0,0.00019973,2]
[408339202,1773453032478,-501.52281394,0.00019973,2]
[408339205,1773453032491,-4178.1559714,0.00019999,2]
[408339207,1773453032501,-6796.3638374,0.00019999,2]
[408339209,1773453032510,-195.2132561,0.00019999,2]
[408339211,1773453032520,-6796.3638374,0.00019999,2]
[408339213,1773453032529,-288.3240717,0.00019999,2]
[408339215,1773453032538,-500.0,0.00019999,2]
[408339217,1773453032548,-500.0,0.00019999,2]
[408339219,1773453032558,-500.0,0.00019999,2]
[408339220,1773453032567,-153.07513575,0.00019999,2]
[408339221,1773453032576,-500.0,0.00019999,2]
[408339222,1773453032586,-196.7140571,0.00019999,2]
[408339223,1773453032595,-252.29061111,0.00019999,2]
[408339224,1773453032604,-307.60092342,0.00019999,2]
[408339225,1773453032613,-500.0,0.00019999,2]
[408339226,1773453032623,-500.0,0.00019999,2]
[408339227,1773453032633,-500.0,0.00019999,2]
[408339228,1773453032642,-500.0,0.00019999,2]
[408339229,1773453032651,-250.0,0.00019999,2]
[408339230,1773453032660,-55531.95768002,0.0002,2]
[408339231,1773453032672,-8793.04992906,0.0002,2]
[408339232,1773453032683,-93717.82284334,0.0002,2]
[408339233,1773453032694,-76275.40040502,0.0002,2]
[408339237,1773453038107,-349.83976723,0.0002,2]
[408339238,1773453038162,-1284.91699936,0.0002,2]
[408339239,1773453038319,-1605.0,0.0002,2]
[408339244,1773453040314,-335.38,0.0002,2]
[408339245,1773453040326,-725.5,0.0002,2]
[408339246,1773453040368,-197747.90482021,0.0002,2]
[408339255,1773453043336,-115.96195252,0.0002,2]
[408339257,1773453045995,-24770.07,0.0002,2]
[408339258,1773453046365,-6595.38337466,0.0002,2]
[408339266,1773453124154,250.0,0.00015,2]
[408339268,1773453595259,205.75452154,0.0001199,2]
[408339269,1773453595281,469.88636022,0.0001199,2]
[408339270,1773453595303,469.88636022,0.0001199,2]
[408339271,1773453595328,3034.91975115,0.0001199,2]
[408339272,1773453602450,5008.43816875,8e-05,2]
[408339274,1773453730093,1000.0,0.000135,2]
[408339275,1773453749322,1970.29540818,0.0001,2]
[408339277,1773454104479,150.186786,0.00018145,7]
[408339279,1773454147125,-151.0,0.00014634,2]
[408339280,1773454147147,-151.0,0.00014634,2]
[408339281,1773454149135,-1984.6,0.00015967,2]
[408339282,1773454149155,-300.41884499,0.00016097,2]
[408339283,1773454149179,-600.0,0.00016097,2]
[408339284,1773454149214,-254.0527123,0.00016097,2]
[408339285,1773454149236,-300.0,0.00016199,2]
[408339286,1773454149256,-4620.91746603,0.000162,5]
[408339294,1773454232116,-379.09116306,0.000162,5]
[408339296,1773454232126,-195.0,0.00016555,2]
[408339298,1773454232136,-2500.0,0.00017716,2]
[408339300,1773454232147,-245.82,0.00018044,2]
[408339302,1773454232157,-166.66,0.00018126,2]
[408339304,1773454232167,-166.66,0.00018508,2]
[408339305,1773454232177,-166.66,0.00018889,2]
[408339306,1773454232187,-500.0,0.000191,2]
[408339307,1773454232197,-166.66,0.00019271,2]
[408339308,1773454232207,-1835.08,0.00019296,2]
[408339309,1773454232216,-112.44503247,0.0001935,2]
[408339310,1773454232228,-1087.55496753,0.0001935,2]
[408339311,1773454232238,-150.0,0.00019351,2]
[408339312,1773454232248,-403.74,0.00019359,2]
[408339313,1773454232258,-500.0,0.00019397,2]
[408339314,1773454232267,-300.0,0.00019499,2]
[408339315,1773454232277,-2000.0,0.000195,2]
[408339316,1773454232287,-2000.0,0.000195,2]
[408339317,1773454232296,-769.862,0.000196,2]
[408339318,1773454232306,-166.66,0.00019652,2]
[408339319,1773454232316,-150.0,0.00019726,2]
[408339320,1773454232325,-150.0,0.00019726,2]
[408339321,1773454232334,-150.0,0.00019726,2]
[408339322,1773454232343,-154.23944135,0.00019726,2]
[408339323,1773454232352,-150.0,0.00019726,2]
[408339324,1773454232362,-150.0,0.00019726,2]
[408339325,1773454232371,-150.0,0.00019726,2]
[408339327,1773454232380,-500.0,0.00019726,2]
[408339328,1773454232390,-150.0,0.00019726,2]
[408339330,1773454232400,-150.0,0.00019726,2]
[408339332,1773454232411,-150.0,0.00019726,2]
[408339334,1773454232420,-150.0,0.00019726,2]
[408339335,1773454232430,-168.92139577,0.00019726,2]
[408339336,1773454232439,-150.0,0.00019726,2]
[408339337,1773454232449,-150.0,0.00019726,2]
[408339338,1773454232459,-150.0,0.00019726,2]
[408339340,1773454232468,-230.85505016,0.00019726,2]
[408339342,1773454232479,-150.0,0.00019726,2]
[408339343,1773454232489,-150.0,0.00019726,2]
[408339344,1773454232499,-1835.08,0.00019779,2]
[408339345,1773454232509,-254.82795153,0.00019781,2]
[408339346,1773454232519,-150.0,0.00019781,2]
[408339347,1773454232528,-150.0,0.00019781,2]
[408339348,1773454232538,-151.73975208,0.00019781,2]
[408339349,1773454232548,-150.0,0.00019781,2]
[408339350,1773454232557,-500.0,0.00019781,2]
[408339351,1773454232566,-150.0,0.00019781,2]
[408339352,1773454232576,-150.0,0.00019781,2]
[408339353,1773454232586,-150.0,0.00019781,2]
[408339354,1773454232595,-150.0,0.00019781,2]
[408339355,1773454232605,-150.0,0.00019781,2]
[408339356,1773454232615,-150.0,0.00019781,2]
[408339357,1773454232625,-250.0,0.00019781,2]
[408339358,1773454232635,-270.450365,0.00019781,2]
[408339359,1773454232645,-158.47289357,0.00019781,2]
[408339360,1773454232655,-233.48847184,0.00019808,2]
[408339361,1773454232665,-152.33366304,0.00019808,2]
[408339362,1773454232675,-150.0,0.00019808,2]
[408339363,1773454232685,-152.40828117,0.00019808,2]
[408339364,1773454232695,-11230.30680474,0.0001982,2]
[408339365,1773454232706,-65080.17,0.0001983,2]
[408339366,1773454232715,-203.51659168,0.00019836,2]
[408339367,1773454232725,-210.96815223,0.00019836,2]
[408339368,1773454232736,-217.13117603,0.00019836,2]
[408339369,1773454232750,-500.0,0.00019836,2]
[408339370,1773454232759,-202.0057196,0.00019836,2]
[408339371,1773454232769,-232.25163408,0.00019836,2]
[408339372,1773454232778,-205.20458016,0.00019836,2]
[408339373,1773454232788,-211.33230755,0.00019836,2]
[408339374,1773454232797,-212.18055549,0.00019836,2]
[408339375,1773454232806,-212.33723633,0.00019836,2]
[408339376,1773454232815,-150.0,0.00019863,2]
[408339377,1773454232825,-500.0,0.00019873,2]
[408339378,1773454232834,-500.0,0.00019873,2]
[408339379,1773454232844,-500.0,0.0001989,2]
[408339380,1773454232854,-1105.45879613,0.000199,2]
[408339381,1773454232864,-1515.10809969,0.000199,2]
[408339382,1773454232874,-3193.39684175,0.000199,2]
[408339383,1773454232883,-365.6317551,0.000199,2]
[408339384,1773454232893,-10004.54,0.00019902,2]
[408339385,1773454232902,-239.87974126,0.00019918,2]
[408339386,1773454232912,-350.0,0.00019927,2]
[408339387,1773454232922,-359.12953313,0.00019945,2]
[408339388,1773454232931,-155.26368895,0.00019959,2]
[408339389,1773454232941,-3694.84,0.00019963,2]
[408339390,1773454232952,-350.0,0.00019968,2]
[408339391,1773454232961,-500.70824589,0.00019973,2]
[408339392,1773454232971,-503.04895662,0.00019973,2]
[408339393,1773454232979,-503.60415802,0.00019973,2]
[408339394,1773454232990,-160.26884412,0.00019973,2]
[408339395,1773454232999,-500.0,0.00019973,2]
[408339396,1773454233009,-500.0,0.00019973,2]
[408339397,1773454233020,-150.22155762,0.00019973,2]
[408339398,1773454233030,-501.29318119,0.00019973,2]
[408339399,1773454233040,-202.16392726,0.00019988,2]
[408339400,1773454233049,-151.0,0.00019988,2]
[408339401,1773454233059,-154.25979387,0.00019988,2]
[408339402,1773454233069,-10717.5342536,0.00019992,2]
[408339403,1773454233078,-3706.1671332,0.00019992,2]
[408339404,1773454233088,-150.5812003,0.00019992,2]
[408339405,1773454233098,-415.52822655,0.00019999,2]
[408339406,1773454233108,-515.29195413,0.00019999,2]
[408339407,1773454233118,-500.0,0.00019999,2]
[408339408,1773454233128,-500.0,0.00019999,2]
[408339409,1773454233137,-500.0,0.00019999,2]
[408339410,1773454233147,-500.0,0.00019999,2]
[408339411,1773454233157,-500.0,0.00019999,2]
[408339412,1773454233167,-500.0,0.00019999,2]
[408339413,1773454233176,-500.0,0.00019999,2]
[408339414,1773454233185,-500.0,0.00019999,2]
[408339415,1773454233195,-500.0,0.00019999,2]
[408339416,1773454233205,-500.0,0.00019999,2]
[408339417,1773454233215,-465.70952058,0.00019999,2]
[408339418,1773454233224,-500.0,0.00019999,2]
[408339419,1773454233234,-500.0,0.00019999,2]
[408339420,1773454233244,-500.0,0.00019999,2]
[408339421,1773454233253,-500.0,0.00019999,2]
[408339422,1773454233263,-500.0,0.00019999,2]
[408339423,1773454233273,-573.01570971,0.00019999,2]
[408339424,1773454233282,-500.0,0.00019999,2]
[408339425,1773454233292,-500.0,0.00019999,2]
[408339426,1773454233301,-500.0,0.00019999,2]
[408339427,1773454233310,-500.0,0.00019999,2]
[408339428,1773454233320,-500.0,0.00019999,2]
[408339429,1773454233344,-500.0,0.00019999,2]
[408339430,1773454233354,-500.0,0.00019999,2]
[408339431,1773454233365,-500.0,0.00019999,2]
[408339432,1773454233375,-358.25979389,0.00019999,2]
[408339433,1773454233385,-316.56332864,0.00019999,2]
[408339434,1773454233396,-501.44092884,0.00019999,2]
[408339435,1773454233409,-712.0,0.0002,2]
[408339436,1773454233419,-88370.51407496,0.0002,2]
[408339437,1773454233433,-38975.24510033,0.0002,2]
[408339438,1773454233445,-9157.13412314,0.0002,2]
[408339440,1773454238181,-150.0,0.00019726,2]
[408339441,1773454238192,-150.0,0.00019781,2]
[408339442,1773454238204,-16.18104866,0.00019836,2]
[408339443,1773454238235,-188.2748805,0.00019836,2]
[408339444,1773454238246,-298.8401492,0.0002,2]
[408339445,1773454238288,-499.40535172,0.0002,2]
[408339446,1773454238395,-4339.1699421,0.0002,2]
[408339447,1773454238449,-1270.60232014,0.0002,2]
[408339449,1773454240433,-392.68031089,0.0002,2]
[408339450,1773454240850,-872.14,0.0002,2]
[408339451,1773454240903,-1015.96867818,0.0002,2]